fUST/lending_fUST_20251216
["ID","MTS","AMOUNT","RATE_DAILY","PERIOD"]
[398589779,1765857112046,-1319.15,0.00013698,2]
[398589780,1765857112056,-1319.15,0.00013698,2]
[398589781,1765857112065,-1319.15,0.00013698,2]
[398589782,1765857112074,-2121.87,0.00013698,2]
[398589783,1765857112084,-1319.15,0.00013698,2]
[398589784,1765857112094,-1319.15,0.00013698,2]
[398589785,1765857112103,-1319.15,0.00013698,2]
[398589786,1765857112113,-1319.15,0.00013698,2]
[398589787,1765857112122,-1319.15,0.00013698,2]
[398589788,1765857112131,-1319.15,0.00013698,2]
[398589789,1765857112144,-500.0,0.00013698,2]
[398589790,1765857112153,-1319.15,0.00013698,2]
[398589791,1765857112162,-858.84,0.00013698,2]
[398589792,1765857112171,-1319.15,0.00013698,2]
[398589793,1765857112181,-945.29,0.00013698,2]
[398589794,1765857112190,-1319.15,0.00013698,2]
[398589795,1765857112199,-630.77,0.00013698,2]
[398589796,1765857112208,-1319.15,0.00013698,2]
[398589797,1765857112218,-630.77,0.00013698,2]
[398589798,1765857112227,-1319.22977498,0.00013698,2]
[398589799,1765857112236,-630.77,0.00013698,2]
[398589800,1765857112246,-630.77,0.00013698,2]
[398589801,1765857112255,-1092.05,0.00013698,2]
[398589802,1765857112263,-630.77,0.00013698,2]
[398589803,1765857112272,-580.26,0.00013698,2]
[398589804,1765857112282,-630.77,0.00013698,2]
[398589805,1765857112291,-630.77,0.00013698,2]
[398589806,1765857112300,-630.77,0.00013698,2]
[398589807,1765857112310,-630.77,0.00013698,2]
[398589808,1765857112319,-630.77,0.00013698,2]
[398589809,1765857112328,-630.77,0.00013698,2]
[398589810,1765857112338,-630.77,0.00013698,2]
[398589811,1765857112347,-630.77,0.00013698,2]
[398589812,1765857112356,-630.77,0.00013698,2]
[398589813,1765857112365,-630.77,0.00013698,2]
[398589814,1765857112374,-630.77,0.00013698,2]
[398589815,1765857112384,-630.77,0.00013698,2]
[398589816,1765857112393,-630.77,0.00013698,2]
[398589817,1765857112402,-630.77,0.00013698,2]
[398589818,1765857112411,-630.77,0.00013698,2]
[398589819,1765857112420,-500.0,0.00013698,2]
[398589820,1765857112430,-630.77,0.00013698,2]
[398589821,1765857112440,-630.77,0.00013698,2]
[398589822,1765857112451,-630.77,0.00013698,2]
[398589823,1765857112461,-630.95972494,0.00013698,2]
[398589824,1765857112470,-2445.72,0.00013698,2]
[398589825,1765857112481,-3903.36,0.00013698,2]
[398589826,1765857112492,-537.08,0.00013698,2]
[398589827,1765857112502,-618.36,0.00013698,2]
[398589828,1765857112511,-4243.55,0.00013698,2]
[398589829,1765857112520,-505.07408384,0.00013698,2]
[398589830,1765857112529,-1422.62,0.00013698,2]
[398589831,1765857112538,-800.38,0.00013698,2]
[398589832,1765857112546,-1202.09,0.00013698,2]
[398589833,1765857112556,-799.6,0.00013698,2]
[398589834,1765857112565,-500.0,0.00013698,2]
[398589835,1765857112574,-500.0,0.00013698,2]
[398589836,1765857112583,-500.0,0.00013698,2]
[398589837,1765857112592,-520.25,0.00013698,2]
[398589838,1765857112602,-500.0,0.00013698,2]
[398589839,1765857112611,-500.0,0.00013698,2]
[398589840,1765857112620,-500.0,0.00013698,2]
[398589841,1765857112630,-544.42711963,0.00013698,2]
[398589842,1765857112639,-14584.18,0.00013698,2]
[398589843,1765857112649,-2341.35,0.00013698,2]
[398589844,1765857112659,-500.0,0.00013698,2]
[398589845,1765857112669,-614.63,0.00013698,2]
[398589846,1765857112678,-3921.7,0.00013698,2]
[398589847,1765857112687,-2042.99,0.00013698,2]
[398589848,1765857112696,-500.0,0.00013698,2]
[398589849,1765857112705,-2154.94,0.00013698,2]
[398589850,1765857112713,-500.0,0.00013698,2]
[398589851,1765857112723,-1164.37,0.00013698,2]
[398589852,1765857112733,-500.0,0.00013698,2]
[398589853,1765857112742,-500.0,0.00013698,2]
[398589854,1765857112751,-1452.17,0.00013698,2]
[398589855,1765857112760,-500.0,0.00013698,2]
[398589856,1765857112769,-500.0,0.00013698,2]
[398589857,1765857112778,-500.0,0.00013698,2]
[398589858,1765857112787,-500.0,0.00013698,2]
[398589859,1765857112798,-634.55915488,0.00013698,2]
[398589860,1765857112807,-500.0,0.00013698,2]
[398589861,1765857112817,-3354.89,0.00013698,2]
[398589862,1765857112826,-4665.68,0.00013698,2]
[398589863,1765857112836,-500.0,0.00013698,2]
[398589864,1765857112844,-885.63,0.00013698,2]
[398589865,1765857112853,-4665.68,0.00013698,2]
[398589866,1765857112863,-4665.68,0.00013698,2]
[398589867,1765857112873,-4665.68,0.00013698,2]
[398589868,1765857112883,-4665.68,0.00013698,2]
[398589869,1765857112893,-2233.83,0.00013698,2]
[398589870,1765857112903,-4665.68,0.00013698,2]
[398589871,1765857112912,-384.0,0.00013698,2]
[398589872,1765857112921,-2233.83,0.00013698,2]
[398589873,1765857112930,-4665.68,0.00013698,2]
[398589874,1765857112939,-583.17,0.00013698,2]
[398589875,1765857112949,-934.17,0.00013698,2]
[398589876,1765857112958,-2233.83,0.00013698,2]
[398589877,1765857112967,-4665.68,0.00013698,2]
[398589878,1765857112977,-2233.83,0.00013698,2]
[398589879,1765857112987,-4665.68,0.00013698,2]
[398589880,1765857112997,-2233.83,0.00013698,2]
[398589881,1765857113007,-4665.68,0.00013698,2]
[398589882,1765857113016,-2233.83,0.00013698,2]
[398589883,1765857113026,-4665.68,0.00013698,2]
[398589884,1765857113036,-2233.83,0.00013698,2]
[398589885,1765857113045,-500.0,0.00013698,2]
[398589886,1765857113054,-4665.68,0.00013698,2]
[398589887,1765857113064,-2233.83,0.00013698,2]
[398589888,1765857113074,-4665.68,0.00013698,2]
[398589889,1765857113084,-500.0,0.00013698,2]
[398589890,1765857113094,-2233.83,0.00013698,2]
[398589891,1765857113104,-4665.68,0.00013698,2]
[398589892,1765857113113,-2233.83,0.00013698,2]
[398589893,1765857113123,-4665.68,0.00013698,2]
[398589894,1765857113133,-2233.83,0.00013698,2]
[398589895,1765857113148,-4665.68,0.00013698,2]
[398589896,1765857113158,-2233.83,0.00013698,2]
[398589897,1765857113168,-2662.12,0.00013698,2]
[398589898,1765857113177,-4665.68,0.00013698,2]
[398589899,1765857113188,-2233.83,0.00013698,2]
[398589900,1765857113197,-2233.83,0.00013698,2]
[398589901,1765857113206,-4665.68,0.00013698,2]
[398589902,1765857113215,-2233.83,0.00013698,2]
[398589903,1765857113227,-4665.68,0.00013698,2]
[398589904,1765857113235,-2233.83,0.00013698,2]
[398589905,1765857113244,-4665.68,0.00013698,2]
[398589906,1765857113254,-2233.83,0.00013698,2]
[398589907,1765857113264,-4665.68,0.00013698,2]
[398589908,1765857113274,-940.07,0.00013698,2]
[398589909,1765857113283,-2233.83,0.00013698,2]
[398589910,1765857113293,-4665.68,0.00013698,2]
[398589911,1765857113303,-2233.83,0.00013698,2]
[398589912,1765857113312,-4665.68,0.00013698,2]
[398589913,1765857113321,-2233.83,0.00013698,2]
[398589914,1765857113331,-2691.53,0.00013698,2]
[398589915,1765857113340,-4665.81236073,0.00013698,2]
[398589916,1765857113349,-2233.83,0.00013698,2]
[398589917,1765857113359,-500.0,0.00013698,2]
[398589918,1765857113367,-2233.83,0.00013698,2]
[398589919,1765857113376,-2233.83,0.00013698,2]
[398589920,1765857113386,-500.0,0.00013698,2]
[398589921,1765857113395,-2233.89656168,0.00013698,2]
[398589922,1765857113404,-1389.33,0.00013698,2]
[398589923,1765857113413,-947.29,0.00013698,2]
[398589924,1765857113422,-500.0,0.00013698,2]
[398589925,1765857113431,-1434.18,0.00013698,2]
[398589926,1765857113439,-607.29,0.00013698,2]
[398589927,1765857113449,-500.0,0.00013698,2]
[398589928,1765857113457,-500.0,0.00013698,2]
[398589929,1765857113466,-500.0,0.00013698,2]
[398589930,1765857113474,-3493.92,0.00013698,2]
[398589931,1765857113483,-500.0,0.00013698,2]
[398589932,1765857113493,-500.0,0.00013698,2]
[398589933,1765857113502,-529.53,0.00013698,2]
[398589934,1765857113514,-1734.78,0.00013698,2]
[398589935,1765857113530,-500.0,0.00013698,2]
[398589936,1765857113540,-1497.62,0.00013698,2]
[398589937,1765857113550,-1890.34,0.00013698,2]
[398589938,1765857113559,-1321.15,0.00013698,2]
[398589939,1765857113569,-1724.14,0.00013698,2]
[398589940,1765857113578,-627.84,0.00013698,2]
[398589941,1765857113587,-1136.33,0.00013698,2]
[398589942,1765857113597,-500.0,0.00013698,2]
[398589943,1765857113606,-2584.7,0.00013698,2]
[398589944,1765857113616,-906.3,0.00013698,2]
[398589945,1765857113625,-523.47,0.00013698,2]
[398589946,1765857113634,-500.0,0.00013698,2]
[398589947,1765857113643,-860.33,0.00013698,2]
[398589948,1765857113652,-1103.9,0.00013698,2]
[398589949,1765857113662,-500.0,0.00013698,2]
[398589950,1765857113672,-526.2,0.00013698,2]
[398589951,1765857113681,-625.36,0.00013698,2]
[398589952,1765857113690,-500.0,0.00013698,2]
[398589953,1765857113701,-3387.17,0.00013698,2]
[398589954,1765857113711,-838.05,0.00013698,2]
[398589955,1765857113720,-717.42,0.00013698,2]
[398589956,1765857113730,-500.0,0.00013698,2]
[398589957,1765857113739,-1435.24,0.00013698,2]
[398589958,1765857113748,-11122.08,0.00013698,2]
[398589959,1765857113758,-645.68,0.00013698,2]
[398589960,1765857113768,-22080.53,0.00013698,2]
[398589961,1765857113777,-3719.53,0.00013698,2]
[398589962,1765857113786,-835.99,0.00013698,2]
[398589963,1765857113796,-1808.12,0.00013698,2]
[398589964,1765857113806,-500.0,0.00013698,2]
[398589965,1765857113816,-500.0,0.00013698,2]
[398589966,1765857113825,-500.0,0.00013698,2]
[398589967,1765857113835,-8246.11,0.00013698,2]
[398589968,1765857113845,-1665.52,0.00013698,2]
[398589969,1765857113855,-500.0,0.00013698,2]
[398589970,1765857113864,-500.0,0.00013698,2]
[398589971,1765857113874,-505.05,0.00013698,2]
[398589972,1765857113883,-500.0,0.00013698,2]
[398589973,1765857113893,-5019.38,0.00013698,2]
[398589974,1765857113903,-688.63,0.00013698,2]
[398589975,1765857113912,-980.38,0.00013698,2]
[398589976,1765857113922,-2863.98,0.00013698,2]
[398589977,1765857113931,-2333.27,0.00013698,2]
[398589978,1765857113941,-500.0,0.00013698,2]
[398589979,1765857113952,-500.0,0.00013698,2]
[398589980,1765857113962,-500.0,0.00013698,2]
[398589981,1765857113972,-500.0,0.00013698,2]
[398589982,1765857113982,-884.98,0.00013698,2]
[398589983,1765857113992,-500.0,0.00013698,2]
[398589984,1765857114002,-500.0,0.00013698,2]
[398589985,1765857114012,-500.0,0.00013698,2]
[398589986,1765857114023,-2011.13,0.00013698,2]
[398589987,1765857114034,-500.0,0.00013698,2]
[398589988,1765857114043,-561.14,0.00013698,2]
[398589989,1765857114053,-1161.7,0.00013698,2]
[398589990,1765857114063,-500.0,0.00013698,2]
[398589991,1765857114073,-5555.9,0.00013698,2]
[398589992,1765857114083,-500.0,0.00013698,2]
[398589993,1765857114093,-500.0,0.00013698,2]
[398589994,1765857114103,-500.0,0.00013698,2]
[398589995,1765857114113,-500.0,0.00013698,2]
[398589996,1765857114123,-500.0,0.00013698,2]
[398589997,1765857114133,-500.0,0.00013698,2]
[398589998,1765857114147,-500.0,0.00013698,2]
[398589999,1765857114157,-500.0,0.00013698,2]
[398590000,1765857114167,-500.0,0.00013698,2]
[398590001,1765857114184,-500.0,0.00013698,2]
[398590002,1765857114194,-500.0,0.00013698,2]
[398590003,1765857114204,-1243.71,0.00013698,2]
[398590004,1765857114214,-507.59545616,0.00013698,2]
[398590005,1765857114226,-35354.14,0.00013698,2]
[398590006,1765857114236,-9588.87,0.00013698,2]
[398590007,1765857114246,-441.85619469,0.00013698,2]
[398590008,1765857114256,-1419.14,0.00013698,2]
[398590009,1765857114266,-1172.55,0.00013698,2]
[398590010,1765857114276,-500.0,0.00013698,2]
[398590011,1765857114287,-500.0,0.00013698,2]
[398590012,1765857114297,-2089.03,0.00013698,2]
[398590013,1765857114307,-3963.15,0.00013698,2]
[398590014,1765857114317,-2257.39,0.00013698,2]
[398590015,1765857114327,-1097.79,0.00013698,2]
[398590016,1765857114337,-1991.38,0.00013698,2]
[398590017,1765857114346,-841.22,0.00013698,2]
[398590018,1765857114356,-500.0,0.00013698,2]
[398590019,1765857114365,-500.0,0.00013698,2]
[398590020,1765857114376,-500.0,0.00013698,2]
[398590021,1765857114386,-800.38,0.00013698,2]
[398590022,1765857114396,-1431.03,0.00013698,2]
[398590023,1765857114407,-8351.41,0.00013698,2]
[398590024,1765857114417,-500.0,0.00013698,2]
[398590025,1765857114427,-1423.76,0.00013698,2]
[398590026,1765857114436,-896.79,0.00013698,2]
[398590027,1765857114446,-612.54991505,0.00013698,2]
[398590028,1765857114457,-1140.27,0.00013698,2]
[398590029,1765857114467,-4075.24,0.00013698,2]
[398590030,1765857114478,-914.19,0.00013698,2]
[398590031,1765857114488,-500.0,0.00013698,2]
[398590032,1765857114498,-299.23189555,0.00013698,2]
[398590033,1765857114508,-3247.84,0.00013698,2]
[398590034,1765857114519,-1445.43,0.00013698,2]
[398590035,1765857114528,-500.0,0.00013698,2]
[398590036,1765857114540,-940.6,0.00013698,2]
[398590037,1765857114549,-583.95921721,0.00013698,2]
[398590038,1765857114559,-1956.75,0.00013698,2]
[398590039,1765857114569,-500.0,0.00013698,2]
[398590040,1765857114579,-1069.42,0.00013698,2]
[398590041,1765857114588,-2026.56,0.00013698,2]
[398590042,1765857114598,-1628.96,0.00013698,2]
[398590043,1765857114607,-1954.46,0.00013698,2]
[398590044,1765857114617,-1842.29,0.00013698,2]
[398590045,1765857114626,-500.0,0.00013698,2]
[398590046,1765857114636,-500.0,0.00013698,2]
[398590047,1765857114646,-1249.58,0.00013698,2]
[398590048,1765857114655,-5203.28,0.00013698,2]
[398590049,1765857114665,-2367.41,0.00013698,2]
[398590050,1765857114674,-3863.02,0.00013698,2]
[398590051,1765857114684,-2306.5,0.00013698,2]
[398590052,1765857114693,-5137.41,0.00013698,2]
[398590053,1765857114702,-500.0,0.00013698,2]
[398590054,1765857114713,-674.15,0.00013698,2]
[398590055,1765857114723,-560.29,0.00013698,2]
[398590056,1765857114732,-500.0,0.00013698,2]
[398590057,1765857114742,-500.0,0.00013698,2]
[398590058,1765857114752,-2457.45,0.00013698,2]
[398590059,1765857114762,-1620.3,0.00013698,2]
[398590060,1765857114772,-935.88,0.00013698,2]
[398590061,1765857114783,-2175.69,0.00013698,2]
[398590062,1765857114793,-500.0,0.00013698,2]
[398590063,1765857114803,-500.0,0.00013698,2]
[398590064,1765857114813,-831.4,0.00013698,2]
[398590065,1765857114823,-537.44,0.00013698,2]
[398590066,1765857114833,-500.0,0.00013698,2]
[398590067,1765857114843,-500.0,0.00013698,2]
[398590068,1765857114854,-1483.273451,0.00013699,2]
[398590069,1765857114864,-25662.0083968,0.00013699,2]
[398590070,1765857114873,-2122.12234,0.00013699,2]
[398590071,1765857114883,-151.000349,0.00013699,2]
[398590072,1765857114893,-1000.0,0.00013699,2]
[398590073,1765857114902,-3022.011554,0.00013699,2]
[398590074,1765857114912,-3022.011554,0.00013699,2]
[398590075,1765857114922,-3022.011554,0.00013699,2]
[398590076,1765857114932,-3022.011554,0.00013699,2]
[398590077,1765857114942,-3022.011554,0.00013699,2]
[398590078,1765857114951,-3022.011554,0.00013699,2]
[398590079,1765857114961,-3022.011554,0.00013699,2]
[398590080,1765857114970,-3022.011554,0.00013699,2]
[398590081,1765857114980,-3022.011554,0.00013699,2]
[398590082,1765857114990,-3022.011554,0.00013699,2]
[398590083,1765857115000,-3022.011554,0.00013699,2]
[398590084,1765857115009,-3022.011554,0.00013699,2]
[398590085,1765857115019,-3022.011554,0.00013699,2]
[398590086,1765857115029,-3022.011554,0.00013699,2]
[398590087,1765857115039,-3022.011554,0.00013699,2]
[398590088,1765857115048,-3022.011554,0.00013699,2]
[398590089,1765857115058,-3022.011554,0.00013699,2]
[398590090,1765857115068,-3022.011554,0.00013699,2]
[398590091,1765857115078,-3022.011554,0.00013699,2]
[398590092,1765857115087,-3022.011558,0.00013699,2]
[398590093,1765857115097,-2151.93336,0.00013699,2]
[398590094,1765857115107,-2151.93336,0.00013699,2]
[398590095,1765857115117,-2151.93336,0.00013699,2]
[398590096,1765857115127,-2151.93336,0.00013699,2]
[398590097,1765857115137,-2151.93336,0.00013699,2]
[398590098,1765857115150,-2151.93336,0.00013699,2]
[398590099,1765857115160,-2151.93336,0.00013699,2]
[398590100,1765857115170,-2151.93336,0.00013699,2]
[398590101,1765857115179,-2151.93336,0.00013699,2]
[398590102,1765857115190,-2151.93336,0.00013699,2]
[398590103,1765857115199,-2151.93336,0.00013699,2]
[398590104,1765857115209,-2151.93336,0.00013699,2]
[398590105,1765857115220,-2151.93336,0.00013699,2]
[398590106,1765857115230,-2151.93336,0.00013699,2]
[398590107,1765857115239,-2151.93336,0.00013699,2]
[398590108,1765857115249,-2151.93336,0.00013699,2]
[398590109,1765857115258,-2151.93336,0.00013699,2]
[398590110,1765857115269,-2151.93336,0.00013699,2]
[398590111,1765857115279,-2151.93336,0.00013699,2]
[398590112,1765857115289,-2151.933353,0.00013699,2]
[398590113,1765857115298,-403.250109,0.00013699,2]
[398590114,1765857115308,-403.250109,0.00013699,2]
[398590115,1765857115318,-403.250109,0.00013699,2]
[398590116,1765857115328,-403.250109,0.00013699,2]
[398590117,1765857115337,-403.250109,0.00013699,2]
[398590118,1765857115347,-403.250109,0.00013699,2]
[398590119,1765857115357,-403.250109,0.00013699,2]
[398590120,1765857115366,-403.250109,0.00013699,2]
[398590121,1765857115376,-403.250109,0.00013699,2]
[398590122,1765857115386,-403.250109,0.00013699,2]
[398590123,1765857115395,-403.250109,0.00013699,2]
[398590124,1765857115404,-403.250109,0.00013699,2]
[398590125,1765857115414,-403.250109,0.00013699,2]
[398590126,1765857115424,-403.250109,0.00013699,2]
[398590127,1765857115433,-403.250109,0.00013699,2]
[398590128,1765857115442,-403.250109,0.00013699,2]
[398590129,1765857115453,-403.250109,0.00013699,2]
[398590130,1765857115463,-403.250109,0.00013699,2]
[398590131,1765857115472,-403.250109,0.00013699,2]
[398590132,1765857115482,-403.250115,0.00013699,2]
[398590133,1765857115492,-500.0,0.00013699,2]
[398590134,1765857115501,-500.0,0.00013699,2]
[398590135,1765857115510,-159.42029966,0.00013699,2]
[398590136,1765857115520,-500.0,0.00013699,2]
[398590137,1765857115530,-500.0,0.00013699,2]
[398590138,1765857115540,-500.0,0.00013699,2]
[398590139,1765857115550,-500.0,0.00013699,2]
[398590140,1765857115559,-500.0,0.00013699,2]
[398590141,1765857115569,-500.0,0.00013699,2]
[398590142,1765857115579,-500.0,0.00013699,2]
[398590143,1765857115589,-500.0,0.00013699,2]
[398590144,1765857115598,-500.0,0.00013699,2]
[398590145,1765857115608,-500.0,0.00013699,2]
[398590146,1765857115618,-452.97204185,0.00013699,2]
[398590147,1765857115628,-500.0,0.00013699,2]
[398590148,1765857115637,-500.0,0.00013699,2]
[398590149,1765857115647,-500.0,0.00013699,2]
[398590150,1765857115657,-500.0,0.00013699,2]
[398590151,1765857115667,-500.0,0.00013699,2]
[398590152,1765857115677,-500.0,0.00013699,2]
[398590153,1765857115686,-500.0,0.00013699,2]
[398590154,1765857115696,-500.0,0.00013699,2]
[398590155,1765857115706,-500.0,0.00013699,2]
[398590156,1765857115716,-184.60866518,0.00013699,2]
[398590157,1765857115726,-500.0,0.00013699,2]
[398590158,1765857115736,-500.0,0.00013699,2]
[398590159,1765857115748,-500.0,0.00013699,2]
[398590160,1765857115758,-500.0,0.00013699,2]
[398590161,1765857115768,-500.0,0.00013699,2]
[398590162,1765857115778,-500.0,0.00013699,2]
[398590163,1765857115791,-500.0,0.00013699,2]
[398590164,1765857115807,-500.0,0.00013699,2]
[398590165,1765857115818,-500.0,0.00013699,2]
[398590166,1765857115829,-500.0,0.00013699,2]
[398590167,1765857115840,-500.0,0.00013699,2]
[398590168,1765857115850,-500.0,0.00013699,2]
[398590169,1765857115861,-500.0,0.00013699,2]
[398590170,1765857115870,-500.0,0.00013699,2]
[398590171,1765857115880,-500.0,0.00013699,2]
[398590172,1765857115890,-500.0,0.00013699,2]
[398590173,1765857115900,-500.0,0.00013699,2]
[398590174,1765857115910,-438.59862744,0.00013699,2]
[398590175,1765857115922,-165.89320491,0.00013699,2]
[398590176,1765857115932,-500.0,0.00013699,2]
[398590177,1765857115942,-500.0,0.00013699,2]
[398590178,1765857115955,-500.0,0.00013699,2]
[398590179,1765857115970,-500.0,0.00013699,2]
[398590180,1765857115980,-500.0,0.00013699,2]
[398590181,1765857115990,-500.0,0.00013699,2]
[398590182,1765857116000,-500.0,0.00013699,2]
[398590183,1765857116010,-500.0,0.00013699,2]
[398590184,1765857116020,-500.0,0.00013699,2]
[398590185,1765857116029,-500.0,0.00013699,2]
[398590186,1765857116040,-500.0,0.00013699,2]
[398590187,1765857116050,-500.0,0.00013699,2]
[398590188,1765857116060,-500.0,0.00013699,2]
[398590189,1765857116070,-500.0,0.00013699,2]
[398590190,1765857116080,-500.0,0.00013699,2]
[398590191,1765857116090,-500.0,0.00013699,2]
[398590192,1765857116101,-500.0,0.00013699,2]
[398590193,1765857116110,-500.0,0.00013699,2]
[398590194,1765857116311,-500.0,0.00013699,2]
[398590195,1765857116322,-500.0,0.00013699,2]
[398590196,1765857116332,-500.0,0.00013699,2]
[398590197,1765857116342,-500.0,0.00013699,2]
[398590198,1765857116351,-500.0,0.00013699,2]
[398590199,1765857116360,-500.0,0.00013699,2]
[398590200,1765857116370,-500.0,0.00013699,2]
[398590201,1765857116379,-160.0,0.00013699,2]
[398590202,1765857116388,-152.08,0.000137,2]
[398590203,1765857116398,-800.0,0.00013706,2]
[398590204,1765857116407,-800.0,0.00013731,2]
[398590205,1765857116417,-800.0,0.00013732,2]
[398590206,1765857116427,-3449.14412057,0.00013733,2]
[398590207,1765857116436,-800.0,0.00013739,2]
[398590208,1765857116445,-800.0,0.00013742,2]
[398590209,1765857116455,-800.0,0.00013749,2]
[398590210,1765857116464,-800.0,0.00013766,2]
[398590211,1765857116473,-800.0,0.00013778,2]
[398590212,1765857116483,-800.0,0.000138,2]
[398590213,1765857116493,-1000.0,0.00013821,2]
[398590214,1765857116503,-1000.0,0.00013821,2]
[398590215,1765857116513,-1000.0,0.00013821,2]
[398590216,1765857116522,-1000.0,0.00013821,2]
[398590217,1765857116532,-1000.0,0.00013821,2]
[398590218,1765857116541,-1000.0,0.00013821,2]
[398590219,1765857116550,-1000.0,0.00013821,2]
[398590220,1765857116560,-1000.0,0.00013821,2]
[398590221,1765857116570,-1000.0,0.00013821,2]
[398590222,1765857116579,-1000.0,0.00013821,2]
[398590223,1765857116588,-1000.0,0.00013821,2]
[398590224,1765857116598,-1000.0,0.00013821,2]
[398590225,1765857116607,-1000.0,0.00013821,2]
[398590226,1765857116617,-1000.0,0.00013821,2]
[398590227,1765857116626,-1000.0,0.00013821,2]
[398590228,1765857116635,-1000.0,0.00013821,2]
[398590229,1765857116644,-1000.0,0.00013821,2]
[398590230,1765857116654,-1000.0,0.00013821,2]
[398590231,1765857116664,-1000.0,0.00013821,2]
[398590232,1765857116673,-1000.0,0.00013821,2]
[398590233,1765857116682,-1000.0,0.00013821,2]
[398590234,1765857116691,-1000.0,0.00013821,2]
[398590235,1765857116700,-1000.0,0.00013821,2]
[398590236,1765857116710,-1000.0,0.00013821,2]
[398590237,1765857116718,-1000.0,0.00013821,2]
[398590238,1765857116728,-1000.0,0.00013821,2]
[398590239,1765857116737,-1000.0,0.00013821,2]
[398590240,1765857116746,-1000.0,0.00013821,2]
[398590241,1765857116756,-1000.0,0.00013821,2]
[398590242,1765857116765,-1000.0,0.00013821,2]
[398590243,1765857116775,-1000.0,0.00013821,2]
[398590244,1765857116784,-1000.0,0.00013821,2]
[398590245,1765857116793,-1000.0,0.00013821,2]
[398590246,1765857116802,-1000.0,0.00013821,2]
[398590247,1765857116812,-1000.0,0.00013821,2]
[398590248,1765857116821,-1000.46061568,0.00013821,2]
[398590249,1765857116832,-1000.0,0.00013821,2]
[398590250,1765857116841,-1000.0,0.00013821,2]
[398590251,1765857116850,-1000.0,0.00013821,2]
[398590252,1765857116860,-1000.0,0.00013821,2]
[398590253,1765857116870,-1000.0,0.00013821,2]
[398590254,1765857116879,-1000.0,0.00013821,2]
[398590255,1765857116889,-1000.0,0.00013821,2]
[398590256,1765857116898,-1000.0,0.00013821,2]
[398590257,1765857116908,-1000.0,0.00013821,2]
[398590258,1765857116917,-800.0,0.00013854,2]
[398590259,1765857116927,-800.0,0.00013869,2]
[398590260,1765857116937,-800.0,0.00013875,2]
[398590261,1765857116946,-152.08,0.000139,2]
[398590262,1765857116956,-800.0,0.00013907,2]
[398590263,1765857116965,-537.65043338,0.00013921,2]
[398590264,1765857116975,-336.50642024,0.00013949,2]
[398590265,1765857116984,-160.12457973,0.00013971,2]
[398590266,1765857116994,-316.31827184,0.00013971,2]
[398590267,1765857117004,-200.0,0.00013971,2]
[398590268,1765857117013,-200.0,0.00013971,2]
[398590269,1765857117022,-200.0,0.00013971,2]
[398590270,1765857117032,-3839.6,0.00013972,2]
[398590271,1765857117042,-500.0,0.00013972,2]
[398590272,1765857117051,-263.58143828,0.00013972,2]
[398590273,1765857117061,-554.69553087,0.00013972,2]
[398590274,1765857117071,-388.99584372,0.00013972,2]
[398590275,1765857117081,-500.0,0.00013972,2]
[398590276,1765857117090,-500.0,0.00013972,2]
[398590277,1765857117100,-302.80613106,0.00013972,2]
[398590278,1765857117109,-500.0,0.00013972,2]